lending/lending_fUSD_20251202
["ID","MTS","AMOUNT","RATE_DAILY","PERIOD"]
[395343580,1764636097172,-311.814281,0.00060575,120]
[395343581,1764636097228,-152.0,0.000608,120]
[395343582,1764636097282,-600.0,0.00060876,120]
[395343583,1764636097337,-1000.0,0.000609,30]
[395343584,1764636097392,-300.0,0.00061,120]
[395343585,1764636097447,-1000.0,0.00061,30]
[395343586,1764636097499,-177.0,0.00061,120]
[395343587,1764636097550,-171.57222511,0.00061,120]
[395343588,1764636097601,-152.0,0.000613,120]
[395343589,1764636097652,-7114.39,0.0006137,120]
[395343590,1764636097701,-177.0,0.000615,120]
[395343591,1764636097749,-2374.59362773,0.00061554,120]
[395343592,1764636097798,-2150.5684214,0.000618,120]
[395343593,1764636097849,-152.0,0.000619,120]
[395343594,1764636097899,-600.0,0.00061972,120]
[395343595,1764636097946,-1000.0,0.00061999,120]
[395343596,1764636097993,-1500.0,0.00062,120]
[395343597,1764636098040,-200.0,0.00062,120]
[395343598,1764636098090,-288174.81553981,0.00062,120]
[395343599,1764636098143,-177.0,0.00062,120]
[395343600,1764636098196,-171.57222511,0.00062,120]
[395343601,1764636098250,-2500.0,0.000624,120]
[395343602,1764636098304,-152.0,0.000624,120]
[395343603,1764636098370,-177.0,0.000624,120]
[395343604,1764636098423,-2000.0,0.0006249,68]
[395343605,1764636098473,-162.67052663,0.000628,60]
[395343606,1764636098527,-6996.85678026,0.000628,120]
[395343607,1764636098585,-144632.22568514,0.000628,120]
[395343608,1764636098645,-1000.0,0.000629,30]
[395343609,1764636098704,-152.0,0.000629,120]
[395343610,1764636098765,-177.0,0.000629,120]
[395343611,1764636098825,-1000.0,0.00062999,120]
[395343612,1764636098887,-32146.5873243,0.00063,120]
[395343613,1764636098946,-171.57222511,0.00063,120]
[395343614,1764636099000,-1097.0,0.0006301,120]
[395343615,1764636099054,-600.0,0.00063068,120]
[395343616,1764636099111,-177.0,0.000634,120]
[395343617,1764636099177,-152.0,0.000635,120]
[395343618,1764636099234,-152.0,0.0006358,120]
[395343619,1764636099291,-177.0,0.000639,120]
[395343620,1764636099349,-1000.0,0.0006399,30]
[395343621,1764636099406,-1000.0,0.00063999,120]
[395343622,1764636099461,-200.0,0.00064,120]
[395343623,1764636099515,-2000.0,0.00064,120]
[395343624,1764636099568,-152.0,0.00064,120]
[395343625,1764636099627,-171.57222511,0.00064,120]
[395343626,1764636099697,-735.18856398,0.00064164,120]
[395343627,1764636099779,-177.0,0.000644,120]
[395343628,1764636099838,-1000.0,0.00064441,120]
[395343629,1764636099895,-152.0,0.000646,120]
[395343630,1764636099951,-2000.0,0.0006486,71]
[395343631,1764636100011,-1000.0,0.000649,30]
[395343632,1764636100067,-177.0,0.000649,120]
[395343633,1764636100126,-108319.10808977,0.0006499,120]
[395343634,1764636100183,-3322767.77335966,0.00065,60]
[395343635,1764636102708,-202.84926283,0.00012936,2]
[395343636,1764636116663,-500.0,0.00031999,120]
[395343637,1764636116716,-500.0,0.00031999,120]
[395343638,1764636116774,-493.29991693,0.00031999,120]
[395343639,1764636116845,-362.386,0.00037202,47]
[395343640,1764636116906,-920.47,0.000386,30]
[395343641,1764636116969,-920.47,0.000405,30]
[395343642,1764636120937,-695.67,0.00041954,30]
[395343643,1764636120999,-920.47,0.00044,30]
[395343644,1764636121059,-920.47,0.000481,30]
[395343645,1764636121119,-920.47,0.00053,30]
[395343646,1764636121177,-164.89,0.00053,30]
[395343647,1764636121235,-151.91,0.000532,30]
[395343648,1764636121295,-762.205,0.00053965,120]
[395343649,1764636121359,-161.0,0.00055,120]
[395343650,1764636121419,-900.95876812,0.00055,120]
[395343651,1764636121479,-3557.19,0.00055439,120]
[395343652,1764636121539,-161.0,0.00058,120]
[395343653,1764636121599,-362.386,0.00061468,120]
[395343654,1764636121658,-4986624.75431495,0.00065,60]
[395343655,1764636171410,-159.53673717,0.00012936,2]
[395343656,1764636171432,-93.40407289,0.00013,2]
[395343657,1764636176240,-69.58702621,0.00013,2]
[395343658,1764636176263,-177.54582443,0.00013099,2]
[395343659,1764636179468,-400.26104974,0.00013099,2]
[395343660,1764636181196,-195.0,0.00013099,2]
[395343661,1764636183985,-297.17063483,0.00013098,2]
[395343662,1764636191928,-2.82936517,0.00013098,2]
[395343663,1764636191950,-396.90958509,0.00013099,2]
[395343664,1764636193842,-30.28354074,0.00013099,2]
[395343665,1764636193864,-300.0,0.00013099,2]
[395343666,1764636193892,-169.71645926,0.00013099,2]
[395343667,1764636196549,-130.28354074,0.00013099,2]
[395343668,1764636196570,-104.77868427,0.00013099,2]
[395343669,1764636199156,-307.22131573,0.00013099,2]
[395343670,1764636199178,-227.25646082,0.000131,2]
[395343671,1764636201405,-230.45999844,0.000131,2]
[395343672,1764636203789,-357.27559827,0.000131,2]
[395343673,1764636205886,-250.0,0.000131,2]
[395343674,1764636207478,-555.33933309,0.000131,2]
[395343675,1764636209015,-158.98036794,0.000131,2]
[395343676,1764636211185,-166.48504386,0.000131,2]
[395343677,1764636216058,-167.77779564,0.000131,2]
[395343678,1764636218762,-151.82709696,0.000131,2]
[395343679,1764636221005,-348.46889506,0.000131,2]
[395343680,1764636223373,-175.65664235,0.000131,2]
[395343681,1764636224887,-216.88040401,0.000131,2]
[395343682,1764636228350,-163.18803185,0.000131,2]
[395343683,1764636230044,-202.30130885,0.000131,2]
[395343684,1764636232241,-159.98626008,0.000131,2]
[395343685,1764636235428,-64.25415939,0.000131,2]
[395343686,1764636235450,-147.44207577,0.000131,2]
[395343687,1764636238088,-234.05398483,0.000131,2]
[395343688,1764636240755,-172.85401695,0.000131,2]
[395343689,1764636242800,-168.55735313,0.00013099,2]
[395343690,1764636245185,-131.44264687,0.00013099,2]
[395343691,1764636245207,-160.4468814,0.000131,2]
[395343692,1764636249683,-227.92227849,0.000131,2]
[395343693,1764636254724,-175.26368266,0.000131,2]
[395343694,1764636256965,-228.19920063,0.000131,2]
[395343695,1764636258576,-279.76431984,0.000131,2]
[395343696,1764636260643,-194.33621857,0.000131,2]
[395343697,1764636266341,-394.24090294,0.000131,2]
[395343698,1764636268488,-211.7997627,0.000131,2]
[395343699,1764636270227,-582.66162906,0.000131,2]
[395343700,1764636273139,-325.82805848,0.000131,2]
[395343701,1764636277309,-294.44041634,0.000131,2]
[395343702,1764636278800,-302.0,0.000131,2]
[395343703,1764636281832,-387.87409448,0.000131,2]
[395343704,1764636285797,-250.0,0.000131,2]
[395343705,1764636289242,-271.16372545,0.000131,2]
[395343706,1764636291115,-430.55651837,0.000131,2]
[395343707,1764636294497,-172.71971803,0.000131,2]
[395343708,1764636296127,-207.76044612,0.000131,2]
[395343709,1764636303435,-176.7933414,0.000131,2]
[395343710,1764636305166,-300.0,0.00013099,2]
[395343711,1764636309373,-220.67553524,0.00013099,2]
[395343712,1764636336914,-277.5841598,0.00013099,2]
[395343713,1764636340038,-284.98947158,0.00013099,2]
[395343714,1764636364356,-237.98125712,0.00013099,2]
[395343715,1764636365530,-178.76957626,0.00013099,2]
[395343716,1764636365552,-110.3356539,0.00013099,2]
[395343717,1764636369492,-39.6643461,0.00013099,2]
[395343718,1764636369515,-134.36738767,0.00013099,2]
[395343719,1764636372766,-116.63261233,0.00013099,2]
[395343720,1764636372788,-78.36738767,0.000131,2]
[395343721,1764636372828,709.52,0.00011772,2]
[395343722,1764636376457,-192.86667298,0.00012391,2]
[395343723,1764636378125,-195.0,0.00012391,2]
[395343724,1764636380106,-321.65332702,0.00012391,2]
[395343725,1764636380132,-121.24252956,0.00013011,2]
[395343726,1764636384000,-427.28542575,0.00013011,2]
[395343735,1764636609329,3787.201041,7.945e-05,2]
[395343790,1764636633773,-160.99204469,0.00013011,2]
[395343791,1764636633783,-33925.36998149,0.00013099,2]
[395343792,1764636633796,-78037.09078299,0.00013099,2]
[395343793,1764636633808,-209925.51572975,0.00013099,2]
[395343794,1764636633822,-820.7253007,0.00013099,2]
[395343795,1764636633996,-312.0,0.00013099,2]
[395343797,1764636637405,-1260.78888652,0.00013099,2]
[395343798,1764636637417,-3557.24987909,0.00013099,2]
[395343799,1764636637612,-309.60591375,0.00013099,2]
[395343800,1764636637667,-3637.15312271,0.00013099,2]
[395343843,1764636640319,-1.7e-07,0.00013099,2]
[395343844,1764636640331,-449.74109422,0.00013099,2]
[395343845,1764636640342,-3464.86103215,0.00013099,2]
[395343864,1764636642506,-424299.89827646,0.00013099,2]
[395343866,1764636642516,-150.0,0.00013099,2]
[395343868,1764636642525,-300.0,0.00013099,2]
[395343870,1764636642535,-480.0,0.00013099,2]
[395343872,1764636642545,-60939.44723982,0.000131,2]
[395343874,1764636642556,-1000.0,0.000131,2]
[395343876,1764636642565,-3354.23540745,0.000131,2]
[395343878,1764636642575,-176.20230129,0.000131,2]
[395343879,1764636642584,-151.0,0.00013197,2]
[395343880,1764636642594,-151.0,0.00013197,2]
[395343881,1764636642603,-500.0,0.00013199,3]
[395343882,1764636642612,-555.22,0.00013199,2]
[395343883,1764636642621,-1000.0,0.000132,2]
[395343884,1764636642635,-555.22,0.00013473,2]
[395343885,1764636642644,-709.52,0.0001363,2]
[395343886,1764636642653,-611.10141512,0.00013698,2]
[395343887,1764636642662,-500.0,0.00013698,2]
[395343888,1764636642672,-500.0,0.00013698,2]
[395343889,1764636642681,-500.0,0.00013698,2]
[395343890,1764636642691,-500.0,0.00013698,2]
[395343891,1764636642700,-500.0,0.00013698,2]
[395343892,1764636642709,-480.90326803,0.00013698,2]
[395343893,1764636642718,-500.0,0.00013698,2]
[395343895,1764636642727,-500.0,0.00013698,2]
[395343896,1764636642737,-500.0,0.00013698,2]
[395343897,1764636642747,-500.0,0.00013698,2]
[395343898,1764636642756,-500.0,0.00013698,2]
[395343899,1764636642766,-500.0,0.00013698,2]
[395343900,1764636642775,-500.0,0.00013698,2]
[395343901,1764636642784,-500.0,0.00013698,2]
[395343902,1764636642794,-500.0,0.00013698,2]
[395343903,1764636642803,-500.0,0.00013698,2]
[395343904,1764636642812,-500.0,0.00013698,2]
[395343905,1764636642822,-500.0,0.00013698,2]
[395343907,1764636642831,-500.0,0.00013698,2]
[395343909,1764636642841,-499.60724259,0.00013698,2]
[395343910,1764636642851,-500.0,0.00013698,2]
[395343912,1764636642860,-500.0,0.00013698,2]
[395343913,1764636642871,-500.0,0.00013698,2]
[395343914,1764636642880,-229.18977982,0.00013698,2]
[395343916,1764636642889,-500.0,0.00013698,2]
[395343918,1764636642898,-500.0,0.00013698,2]
[395343920,1764636642907,-500.0,0.00013698,2]
[395343921,1764636642917,-500.0,0.00013698,2]
[395343922,1764636642928,-500.0,0.00013698,2]
[395343923,1764636642938,-500.0,0.00013698,2]
[395343924,1764636642947,-500.0,0.00013698,2]
[395343925,1764636642956,-500.0,0.00013698,2]
[395343926,1764636642966,-500.0,0.00013698,2]
[395343927,1764636642976,-500.0,0.00013698,2]
[395343928,1764636642985,-500.0,0.00013698,2]
[395343929,1764636642994,-564.2,0.00013698,2]
[395343930,1764636643005,-500.0,0.00013698,2]
[395343931,1764636643014,-500.0,0.00013698,2]
[395343932,1764636643023,-500.0,0.00013698,2]
[395343933,1764636643032,-500.0,0.00013698,2]
[395343934,1764636643044,-500.0,0.00013698,2]
[395343935,1764636643053,-500.0,0.00013698,2]
[395343936,1764636643063,-218.53575319,0.00013698,2]
[395343937,1764636643073,-555.22,0.00013747,2]
[395343938,1764636643083,-555.22,0.00014021,2]
[395343939,1764636643092,-588.0,0.00014211,2]
[395343940,1764636643101,-500.0,0.00014211,2]
[395343941,1764636643110,-500.0,0.00014211,3]
[395343942,1764636643119,-255.0,0.00014212,2]
[395343943,1764636643128,-709.52,0.0001425,2]
[395343944,1764636643137,-555.22,0.00014295,2]
[395343945,1764636643147,-250.0,0.00014409,2]
[395343946,1764636643157,-555.25,0.00014569,2]
[395343947,1764636643166,-709.52,0.0001487,2]
[395343948,1764636643175,-225.39616974,0.000149,2]
[395343949,1764636643185,-1500.43736548,0.00015,2]
[395343950,1764636643195,-433.0,0.00015418,2]
[395343951,1764636643204,-709.52,0.00015489,2]
[395343952,1764636643214,-709.52,0.00016109,2]
[395343953,1764636643223,-748.09,0.00016116,2]
[395343954,1764636643240,-9999.99,0.00016116,2]
[395343955,1764636643249,-862.98,0.00016116,2]
[395343956,1764636643259,-299.99,0.00016116,4]
[395343957,1764636643268,-465.9954,0.00016274,2]
[395343958,1764636643277,-25391.45941388,0.00016283,2]
[395343959,1764636643287,-3354.23540736,0.00016296,2]
[395343960,1764636643295,-1000.0,0.00016438,2]
[395343961,1764636643304,-942.15851378,0.00016438,2]
[395343962,1764636643313,-150.0,0.00016727,2]
[395343963,1764636643323,-709.52,0.00016728,2]
[395343964,1764636643332,-250.0,0.00017192,2]
[395343965,1764636643341,-709.52,0.00017348,2]
[395343966,1764636643350,-709.52,0.00017967,2]
[395343967,1764636643359,-637.0,0.00018319,2]
[395343968,1764636643368,-1343.0,0.00018407,2]
[395343969,1764636643377,-709.52,0.00018587,2]
[395343970,1764636643387,-709.52,0.00019207,2]
[395343971,1764636643396,-3354.23540736,0.00019493,2]
[395343972,1764636643405,-2000.0,0.000197,2]
[395343973,1764636643415,-709.52,0.00019826,2]
[395343974,1764636643424,-3557.19,0.00020097,2]
[395343975,1764636643433,-709.52,0.00020446,2]
[395343976,1764636643442,-450.0,0.00020866,2]
[395343977,1764636643453,-373.73,0.00020902,2]
[395343978,1764636643462,-709.52,0.00021065,2]
[395343979,1764636643473,-709.52,0.00021685,2]
[395343980,1764636643482,-709.52,0.00022304,2]
[395343981,1764636643491,-151.0,0.00022686,7]
[395343982,1764636643500,-3354.23540736,0.00022689,2]
[395343983,1764636643509,-156.48754854,0.00022852,2]
[395343984,1764636643518,-709.52,0.00022924,2]
[395343985,1764636643527,-166.66,0.00023288,2]
[395343986,1764636643536,-999.0,0.00023387,3]
[395343987,1764636643546,-1000.0,0.000234,2]
[395343988,1764636643556,-2000.0,0.00023407,2]
[395343989,1764636643565,-709.52,0.00023543,2]
[395343990,1764636643574,-250.0,0.00023871,2]
[395343991,1764636643584,-166.66,0.00024057,2]
[395343992,1764636643593,-162.08,0.00024658,2]
[395343993,1764636643604,-166.66,0.00024826,2]
[395343994,1764636643616,-1000.0,0.00025215,2]
[395343995,1764636643626,-500.0,0.00025269,7]
[395343996,1764636643636,-166.66,0.00025594,2]
[395343997,1764636643645,-3354.23540736,0.00025886,2]
[395343998,1764636643654,-166.66,0.00026363,2]
[395343999,1764636643664,-6119.32,0.00026407,2]
[395344000,1764636643674,-177.27,0.0002666,2]
[395344001,1764636643683,-1000.0,0.000271,2]
[395344002,1764636643698,-166.66,0.00027132,2]
[395344003,1764636643715,-300.0,0.00027397,2]
[395344004,1764636643724,-176.20230129,0.00027533,2]
[395344005,1764636643734,-500.0,0.00028579,120]
[395344006,1764636643745,-2856.142,0.0002858,2]
[395344007,1764636643755,-1603.0,0.0002858,2]
[395344008,1764636643764,-1320.0,0.0002858,2]
[395344009,1764636643774,-610.0,0.0002858,2]
[395344010,1764636643785,-613.0,0.0002858,2]
[395344011,1764636643795,-1258.0,0.0002858,2]
[395344012,1764636643805,-562.0,0.0002858,2]
[395344013,1764636643815,-6507.0,0.0002858,2]
[395344014,1764636643824,-4704.0,0.0002858,2]
[395344015,1764636643834,-252.0,0.0002858,2]
[395344016,1764636643843,-3354.23540736,0.00029082,2]
[395344017,1764636643853,-762.205,0.00031385,120]
[395344018,1764636643863,-1603.0,0.0003158,2]
[395344019,1764636643874,-610.0,0.0003158,2]
[395344020,1764636643883,-613.0,0.0003158,2]
[395344021,1764636643893,-1253.0,0.0003158,2]
[395344022,1764636643902,-562.0,0.0003158,2]
[395344023,1764636643912,-6507.0,0.0003158,2]
[395344024,1764636643921,-4704.0,0.0003158,2]
[395344025,1764636643934,-3557.19,0.00031878,2]
[395344026,1764636643944,-162.01721274,0.000319,2]
[395344027,1764636643954,-5494.0,0.00031906,5]
[395344028,1764636643963,-982.3397775,0.00031906,2]
[395344029,1764636643974,-12617.5953265,0.00031906,2]
[395344030,1764636643983,-151.0,0.00031997,7]
[395344031,1764636643994,-150.0,0.00031999,20]
[395344032,1764636644005,-485.02934247,0.00031999,2]
[395344033,1764636644014,-180.15416241,0.00031999,2]
[395344034,1764636644023,-225.58650218,0.00031999,2]
[395344035,1764636644032,-477.60826619,0.00031999,2]
[395344036,1764636644041,-63661.9781997,0.00032,2]
[395344042,1764636645958,-501.79107402,0.00032,2]
[395344043,1764636645971,-7368.2314572,0.00032,2]
[395344044,1764636646790,-613.09700592,0.00032,2]
[395344045,1764636686873,-691.19507883,0.00012999,2]
[395344046,1764636688544,-314.51755281,0.00012999,2]
[395344047,1764636691568,-169.47029266,0.00012999,2]
[395344048,1764636693258,-183.42291538,0.00012999,2]
[395344049,1764636695579,-205.78294721,0.00012999,2]
[395344050,1764636698645,-271.84930398,0.00012999,2]
[395344051,1764636700912,-175.28198904,0.00012999,2]
[395344052,1764636703590,-164.64353867,0.00012999,2]
[395344053,1764637002004,-176.20230129,0.00013,2]
[395344054,1764637002029,-210.37426016,0.00013,2]
[395344055,1764637004027,-160.23379594,0.00013,2]
[395344056,1764637005751,-157.83711222,0.00013,2]
[395344057,1764637008997,-186.00031382,0.00013,2]
[395344058,1764637011272,-262.01874288,0.00013,2]
[395344059,1764637014802,-304.87355932,0.00013,2]
[395344060,1764637015909,-60.35637864,0.00013,2]
[395344061,1764637015944,-298.23155398,0.00013097,2]
[395344062,1764637076919,-579.09974373,0.00013,2]
[395344063,1764637081333,-235.12334716,0.00013,2]
[395344064,1764637082765,500.0,0.00013199,4]
[395344065,1764637083061,-178.50051504,0.00012998,2]
[395344066,1764637083085,-28.39222806,0.00013,2]
[395344067,1764637088388,-170.98246701,0.00013,2]
[395344068,1764637089533,-207.95261956,0.00013,2]
[395344069,1764637091082,-384.63443363,0.00013,2]
[395344070,1764637093660,-279.82156993,0.00013,2]
[395344071,1764637200492,-209.60658348,0.00013,2]
[395344072,1764637200516,-28.15262336,0.00013087,2]
[395344073,1764637201725,-221.84737664,0.00013087,2]
[395344074,1764637201748,-1200.0,0.00013097,2]
[395344075,1764637201779,-500.0,0.00013098,2]
[395344076,1764637201824,-500.0,0.00013098,2]
[395344077,1764637201859,-175.26368266,0.00013098,2]
[395344078,1764637201887,-500.0,0.00013098,2]
[395344079,1764637201924,-500.0,0.00013098,2]
[395344080,1764637201965,-500.0,0.00013098,2]
[395344081,1764637201993,-500.0,0.00013098,2]
[395344082,1764637202022,-500.0,0.00013098,2]
[395344083,1764637202050,-500.0,0.00013098,2]
[395344084,1764637202079,-500.0,0.00013098,2]
[395344085,1764637202109,-500.0,0.00013098,2]
[395344086,1764637202139,-500.0,0.00013098,2]
[395344087,1764637202165,-500.0,0.00013098,2]
[395344088,1764637202206,-416.96075843,0.00013098,2]
[395344089,1764637202252,-500.0,0.00013098,2]
[395344090,1764637202300,-473.92818227,0.00013098,2]
[395344091,1764637202353,-26.07181773,0.00013098,2]
[395344092,1764637202387,-195.9767873,0.00013098,2]
[395344093,1764637301589,-478.651,0.00012837,2]
[395344094,1764637302062,-300.0,0.00013097,2]
[395344095,1764637302089,-304.0232127,0.00013098,2]
[395344096,1764637302113,-500.0,0.00013098,2]
[395344097,1764637302138,-500.0,0.00013098,2]
[395344098,1764637302162,-500.0,0.00013098,2]
[395344099,1764637302185,-500.0,0.00013098,2]
[395344100,1764637302210,-500.0,0.00013098,2]
[395344101,1764637302237,-500.0,0.00013098,2]
[395344102,1764637302263,-500.0,0.00013098,2]
[395344103,1764637302287,-500.0,0.00013098,2]
[395344104,1764637302309,-475.60896767,0.00013098,2]
[395344105,1764637302330,-265.48051493,0.00013098,2]
[395344106,1764637302352,-151.0,0.00013098,2]
[395344107,1764637302373,-151.0,0.00013098,2]
[395344108,1764637303526,168.74896608,0.00013098,2]
[395344109,1764637303906,-284.67424634,0.00013099,2]
[395344110,1764637306973,-242.434925,0.00013099,2]
[395344111,1764637310839,-232.7027189,0.00013099,2]
[395344112,1764637312443,-421.42549692,0.00013099,2]
[395344113,1764637315570,-205.8885899,0.00013099,2]
[395344114,1764637317807,-260.54795927,0.00013099,2]
[395344115,1764637318999,-11005.48733862,0.00013099,2]
[395344116,1764637319513,-325.96826623,0.00013099,2]
[395344117,1764637359672,-151.0,0.00013091,2]
[395344118,1764637359695,-151.0,0.00013091,2]
[395344119,1764637359717,-43.60885805,0.00013091,2]
[395344120,1764637360774,-107.39114195,0.00013091,2]
[395344121,1764637360799,-78.41021545,0.00013091,2]
[395344122,1764637364570,-72.58978455,0.00013091,2]
[395344123,1764637364592,-148.30686491,0.00013091,2]
[395344124,1764637366713,-2.69313509,0.00013091,2]
[395344125,1764637366735,-151.0,0.00013091,2]
[395344126,1764637366757,-151.0,0.00013091,2]
[395344127,1764637366780,-50.68133613,0.00013091,2]
[395344128,1764637371617,-100.31866387,0.00013091,2]
[395344129,1764637371640,-56.50549618,0.00013091,2]
[395344130,1764637372756,-94.49450382,0.00013091,2]
[395344131,1764637372780,-69.57961201,0.00013091,2]
[395344132,1764637374331,-81.42038799,0.00013091,2]
[395344133,1764637374360,-151.0,0.00013091,2]
[395344134,1764637374383,-0.39712242,0.00013091,2]
[395344135,1764637376964,-150.60287758,0.00013091,2]
[395344136,1764637376988,-96.7625272,0.00013091,2]
[395344137,1764637379228,-54.2374728,0.00013091,2]
[395344138,1764637379274,-151.0,0.00013091,2]
[395344139,1764637379317,-62.28129779,0.00013091,2]
[395344145,1764637496846,-284.68914308,0.00013,2]
[395344146,1764637498431,-159.29900526,0.00013,2]
[395344147,1764637500003,-250.0,0.00013,2]
[395344148,1764637502327,-216.40533596,0.00013,2]
[395344149,1764637504666,-279.65739318,0.00013,2]
[395344150,1764637507719,-272.14834606,0.00013,2]
[395344151,1764637510600,-423.8524698,0.00013,2]
[395344152,1764637510623,-0.44170642,0.00013,2]
[395344153,1764637513641,-204.77130195,0.00013,2]
[395344154,1764637515639,-166.60570187,0.00013,2]
[395344155,1764637519908,-160.01582194,0.00013,2]
[395344156,1764637521451,-307.07902502,0.00013,2]
[395344157,1764637524518,-368.6111895,0.00013,2]
[395344158,1764637524540,-122.86933927,0.00013091,2]
[395344159,1764637550988,-72.90627496,0.00013091,2]
[395344160,1764637551020,-151.0,0.00013096,2]
[395344161,1764637551050,-151.0,0.00013096,2]
[395344162,1764637551083,-182.0,0.00013097,2]
[395344163,1764637551117,-517.63930147,0.00013098,2]
[395344164,1764637551150,-247.70168578,0.00013098,2]
[395344165,1764637551184,-500.0,0.00013098,2]
[395344166,1764637551219,-284.68914308,0.00013098,2]
[395344167,1764637551253,-540.44632605,0.00013098,2]
[395344168,1764637551287,-500.0,0.00013098,2]
[395344169,1764637551325,-310.11534998,0.00013098,2]
[395344170,1764637551356,-244.0,0.00013098,2]
[395344171,1764637551387,-355.23565192,0.00013098,2]
[395344172,1764637551422,-395.59631906,0.00013098,2]
[395344173,1764637552933,-320.16290508,0.00013099,2]
[395344174,1764637558986,-223.67468518,0.00013099,2]
[395344176,1764637559463,320.16290508,0.00013098,2]
[395344178,1764637562782,-250.18158871,0.00013099,2]
[395344179,1764637565765,-285.64950928,0.00013099,2]
[395344180,1764637569972,-174.22229,0.00013099,2]
[395344181,1764637572442,-178.65710783,0.00013099,2]
[395344182,1764637575033,-297.30144275,0.00013099,2]
[395344183,1764637577286,-191.34294328,0.00013099,2]
[395344184,1764637577980,473.85627389,0.00013098,2]
[395344185,1764637579411,-267.9696451,0.00013099,2]
[395344186,1764637583002,-171.63506498,0.00013099,2]
[395344187,1764637585039,-204.90138406,0.00013099,2]
[395344188,1764637588514,-388.59753492,0.00013099,2]
[395344189,1764637589699,154.7751623,0.00013098,2]
[395344190,1764637589756,146.55555413,0.00013098,2]
[395344191,1764637589784,366.3111219,0.00013098,2]
[395344192,1764637604082,-300.0,0.00013099,2]
[395344193,1764637604154,204.90138406,0.00013098,2]
[395344194,1764637607370,-226.19762213,0.00013099,2]
[395344195,1764637610044,-259.51001762,0.00013099,2]
[395344196,1764637612105,-215.6764325,0.00013099,2]
[395344197,1764637613713,-182.70165476,0.00013099,2]
[395344198,1764637615318,-293.19082572,0.00013099,2]
[395344199,1764637619267,-195.61395219,0.00013099,2]
[395344200,1764637620459,-294.16362264,0.00013099,2]
[395344201,1764637621471,500.0,0.00013098,2]
[395344202,1764637621536,500.0,0.00013098,2]
[395344203,1764637621581,286.37081972,0.00013098,2]
[395344204,1764637622544,-245.47659243,0.00013099,2]
[395344205,1764637625360,-151.42058562,0.00013099,2]
[395344206,1764637625637,198.0,0.00013099,2]
[395344207,1764637628307,-195.0,0.00013099,2]
[395344210,1764637631597,500.0,0.00013099,2]
[395344211,1764637631641,500.0,0.00013099,2]
[395344212,1764637631866,-354.92158138,0.00013099,2]
[395344213,1764637631997,500.0,0.00013099,2]
[395344214,1764637632035,500.0,0.00013099,2]
[395344215,1764637632800,500.0,0.00013099,2]
[395344216,1764637633019,500.0,0.00013099,2]
[395344217,1764637633396,-295.22869805,0.00013099,2]
[395344218,1764637633440,500.0,0.00013099,2]
[395344219,1764637633626,500.0,0.00013099,2]
[395344220,1764637634005,500.0,0.00013099,2]
[395344221,1764637634252,500.0,0.00013099,2]
[395344222,1764637634599,500.0,0.00013099,2]
[395344223,1764637635394,500.0,0.00013099,2]
[395344224,1764637635454,500.0,0.00013099,2]
[395344225,1764637635842,376.35438538,0.00013099,2]
[395344226,1764637636417,-338.83106995,0.00013099,2]
[395344229,1764637638108,500.0,0.00013098,2]
[395344230,1764637638165,386.67475288,0.00013098,2]
[395344231,1764637639534,-300.0,0.00013099,2]
[395344232,1764637640705,181.39753606,0.00013099,2]